[Event "*** Titled Tuesday 3|2 Blitz"]
[Site "Chess.com"]
[Date "2016.06.07"]
[Round "2"]
[White "Evgeny_Levin"]
[Black "aspired"]
[Result "1-0"]
[WhiteElo "2731"]
[BlackElo "2491"]
[TimeControl "180+2"]
[EndTime "17:20:51 PDT"]
[Termination "Evgeny_Levin won on time"]

1. d4 {[%clk 0:03:01.9]} 1... d5 {[%clk 0:02:59.7]} 2. c4 {[%clk 0:03:02.3]}
2... dxc4 {[%clk 0:02:58.5]} 3. Nf3 {[%clk 0:03:02.7]} 3... Nf6 {[%clk
0:02:58.1]} 4. e3 {[%clk 0:03:02.8]} 4... e6 {[%clk 0:02:59.3]} 5. Bxc4 {[%clk
0:03:03.7]} 5... c5 {[%clk 0:03:01.2]} 6. O-O {[%clk 0:03:04.4]} 6... a6 {[%clk
0:03:02]} 7. Nc3 {[%clk 0:03:05]} 7... b5 {[%clk 0:02:58.2]} 8. Be2 {[%clk
0:03:05.9]} 8... cxd4 {[%clk 0:02:57.7]} 9. Nxd4 {[%clk 0:03:07.8]} 9... Bb7
{[%clk 0:02:57.5]} 10. Bf3 {[%clk 0:03:06.5]} 10... Ra7 {[%clk 0:02:46.1]} 11.
Bxb7 {[%clk 0:02:56.7]} 11... Rxb7 {[%clk 0:02:48]} 12. Qf3 {[%clk 0:02:58.5]}
12... Rd7 {[%clk 0:02:33.1]} 13. Nc6 {[%clk 0:02:48.6]} 13... Nxc6 {[%clk
0:02:08.8]} 14. Qxc6 {[%clk 0:02:50.5]} 14... b4 {[%clk 0:02:10]} 15. Na4 {[%clk
0:02:42.7]} 15... Qc7 {[%clk 0:02:06]} 16. Qxa6 {[%clk 0:02:25.7]} 16... Bd6
{[%clk 0:01:50.3]} 17. h3 {[%clk 0:02:04.2]} 17... O-O {[%clk 0:01:39.3]} 18. b3
{[%clk 0:02:04.6]} 18... Bh2+ {[%clk 0:01:19.2]} 19. Kh1 {[%clk 0:02:04.3]}
19... Be5 {[%clk 0:01:13.4]} 20. Bb2 {[%clk 0:02:04.3]} 20... Rd2 {[%clk
0:01:00]} 21. Rac1 {[%clk 0:01:52.8]} 21... Qb8 {[%clk 0:00:58.4]} 22. Bxe5
{[%clk 0:01:37.9]} 22... Qxe5 {[%clk 0:01:00.3]} 23. Rc5 {[%clk 0:01:39.1]}
23... Nd5 {[%clk 0:01:00]} 24. Qc4 {[%clk 0:01:23.9]} 24... h6 {[%clk
0:00:33.7]} 25. Kg1 {[%clk 0:00:51]} 25... Qf6 {[%clk 0:00:15.3]} 26. Rc8 {[%clk
0:00:35.7]} 26... Rxc8 {[%clk 0:00:14.4]} 27. Qxc8+ {[%clk 0:00:37.6]} 27... Kh7
{[%clk 0:00:16.3]} 28. Qc1 {[%clk 0:00:33]} 28... Re2 {[%clk 0:00:09.8]} 29. Qd1
{[%clk 0:00:27.1]} 1-0

[Event "*** Titled Tuesday 3|2 Blitz"]
[Site "Chess.com"]
[Date "2016.06.07"]
[Round "2"]
[White "Dr-Bassem"]
[Black "Dlugy"]
[Result "0-1"]
[WhiteElo "2584"]
[BlackElo "2603"]
[TimeControl "180+2"]
[EndTime "17:21:22 PDT"]
[Termination "Dlugy won on time"]

1. e4 {[%clk 0:03:01.9]} 1... c5 {[%clk 0:03:00.6]} 2. Nf3 {[%clk 0:03:03.1]}
2... d6 {[%clk 0:03:02]} 3. g3 {[%clk 0:03:03.2]} 3... Nf6 {[%clk 0:03:00.6]} 4.
c3 {[%clk 0:03:03.8]} 4... g6 {[%clk 0:02:52.5]} 5. Bg2 {[%clk 0:03:04.4]} 5...
Bg7 {[%clk 0:02:53.8]} 6. O-O {[%clk 0:03:05.4]} 6... O-O {[%clk 0:02:55.4]} 7.
Re1 {[%clk 0:03:07]} 7... Bg4 {[%clk 0:02:53.4]} 8. h3 {[%clk 0:03:07]} 8...
Bxf3 {[%clk 0:02:54.4]} 9. Bxf3 {[%clk 0:03:01.2]} 9... Nc6 {[%clk 0:02:56.3]}
10. d4 {[%clk 0:02:39.1]} 10... cxd4 {[%clk 0:02:56.4]} 11. cxd4 {[%clk
0:02:41]} 11... Nd7 {[%clk 0:02:57.9]} 12. Be3 {[%clk 0:02:38]} 12... e5 {[%clk
0:02:55.7]} 13. dxe5 {[%clk 0:02:33]} 13... dxe5 {[%clk 0:02:52.3]} 14. Nc3
{[%clk 0:02:33.9]} 14... Nd4 {[%clk 0:02:53.2]} 15. Bxd4 {[%clk 0:02:30]} 15...
exd4 {[%clk 0:02:53.6]} 16. Nd5 {[%clk 0:02:31.4]} 16... Nb6 {[%clk 0:02:51.6]}
17. Nxb6 {[%clk 0:02:04.6]} 17... Qxb6 {[%clk 0:02:51.9]} 18. Qd2 {[%clk
0:01:56]} 18... Rad8 {[%clk 0:02:45.4]} 19. Rac1 {[%clk 0:01:51]} 19... d3
{[%clk 0:02:39.4]} 20. b3 {[%clk 0:01:51.8]} 20... h5 {[%clk 0:02:22.5]} 21. Kg2
{[%clk 0:01:31.9]} 21... Kh7 {[%clk 0:02:23.5]} 22. Rcd1 {[%clk 0:01:27.9]}
22... Bh6 {[%clk 0:02:23.4]} 23. Qb2 {[%clk 0:01:26.7]} 23... d2 {[%clk
0:02:23.1]} 24. Re2 {[%clk 0:01:27.8]} 24... h4 {[%clk 0:02:14.2]} 25. gxh4
{[%clk 0:01:27]} 25... Bf4 {[%clk 0:01:53.2]} 26. e5 {[%clk 0:01:26.7]} 26...
Rd4 {[%clk 0:01:37.8]} 27. Qc2 {[%clk 0:01:25.8]} 27... Kg7 {[%clk 0:01:26]} 28.
Re4 {[%clk 0:01:19.1]} 28... Rfd8 {[%clk 0:01:22.5]} 29. e6 {[%clk 0:01:15.8]}
29... fxe6 {[%clk 0:01:11.8]} 30. h5 {[%clk 0:01:16.7]} 30... e5 {[%clk
0:01:12.4]} 31. Rxd4 {[%clk 0:01:15.7]} 31... Rxd4 {[%clk 0:01:11.3]} 32. hxg6
{[%clk 0:01:12.4]} 32... Rd6 {[%clk 0:00:43.6]} 33. Be4 {[%clk 0:01:12.5]} 33...
Qd8 {[%clk 0:00:41.6]} 34. Qc3 {[%clk 0:01:04.1]} 34... Rd4 {[%clk 0:00:40.8]}
35. Bc2 {[%clk 0:00:59.6]} 35... Qd5+ {[%clk 0:00:37.6]} 36. Qf3 {[%clk
0:00:55.3]} 36... e4 {[%clk 0:00:29.5]} 0-1

[Event "*** Titled Tuesday 3|2 Blitz"]
[Site "Chess.com"]
[Date "2016.06.07"]
[Round "2"]
[White "ZEN-22"]
[Black "kikydu96"]
[Result "1-0"]
[WhiteElo "2411"]
[BlackElo "2397"]
[TimeControl "180+2"]
[EndTime "17:21:44 PDT"]
[Termination "ZEN-22 won by checkmate"]

1. e3 {[%clk 0:01:59.6]} 1... e5 {[%clk 0:02:49]} 2. Ne2 {[%clk 0:02:00.6]} 2...
d5 {[%clk 0:02:47.2]} 3. d4 {[%clk 0:02:01.8]} 3... Nc6 {[%clk 0:02:47.5]} 4. c4
{[%clk 0:02:03.1]} 4... Nf6 {[%clk 0:02:45.1]} 5. cxd5 {[%clk 0:02:04]} 5...
Nxd5 {[%clk 0:02:35.2]} 6. e4 {[%clk 0:02:04.2]} 6... Nf6 {[%clk 0:02:35.4]} 7.
d5 {[%clk 0:02:05.1]} 7... Bb4+ {[%clk 0:02:34.4]} 8. Nbc3 {[%clk 0:02:05.7]}
8... Ne7 {[%clk 0:02:35]} 9. Qa4+ {[%clk 0:02:05.4]} 9... Nc6 {[%clk 0:02:30.2]}
10. dxc6 {[%clk 0:02:05.5]} 10... Bxc3+ {[%clk 0:02:30.5]} 11. Nxc3 {[%clk
0:02:06]} 11... O-O {[%clk 0:02:32.1]} 12. Bg5 {[%clk 0:02:04.4]} 12... bxc6
{[%clk 0:02:24.5]} 13. Rd1 {[%clk 0:02:05.5]} 13... Qe7 {[%clk 0:02:24.4]} 14.
Be2 {[%clk 0:02:01.7]} 14... h6 {[%clk 0:02:24.3]} 15. Be3 {[%clk 0:01:59.9]}
15... Be6 {[%clk 0:02:21.3]} 16. O-O {[%clk 0:01:59.4]} 16... Rab8 {[%clk
0:02:21.9]} 17. b3 {[%clk 0:01:59.6]} 17... Rb4 {[%clk 0:02:21.7]} 18. Qxa7
{[%clk 0:02:00.1]} 18... Nxe4 {[%clk 0:02:22.7]} 19. Nxe4 {[%clk 0:01:59.6]}
19... Rxe4 {[%clk 0:02:24.6]} 20. Bc5 {[%clk 0:02:00.7]} 20... Qg5 {[%clk
0:02:19.5]} 21. Bd3 {[%clk 0:02:00.5]} 21... Rg4 {[%clk 0:02:14.4]} 22. g3
{[%clk 0:02:00.7]} 22... Re8 {[%clk 0:02:13]} 23. Be3 {[%clk 0:02:01.9]} 23...
Qh5 {[%clk 0:02:12.4]} 24. Be2 {[%clk 0:01:59.3]} 24... Rxg3+ {[%clk 0:02:11.4]}
25. fxg3 {[%clk 0:01:56.1]} 25... Qxe2 {[%clk 0:02:12.4]} 26. Rde1 {[%clk
0:01:57.7]} 26... Qg4 {[%clk 0:02:11.3]} 27. Qxc7 {[%clk 0:01:57.7]} 27... Bd5
{[%clk 0:02:12.1]} 28. Bb6 {[%clk 0:01:48.5]} 28... h5 {[%clk 0:02:02.1]} 29.
Rxe5 {[%clk 0:01:46.3]} 29... Rc8 {[%clk 0:02:00.4]} 30. Rg5 {[%clk 0:01:37.9]}
30... Qh3 {[%clk 0:01:44.5]} 31. Rxd5 {[%clk 0:01:34.6]} 31... Rxc7 {[%clk
0:01:35.1]} 32. Rd8+ {[%clk 0:01:36.1]} 32... Kh7 {[%clk 0:01:36.5]} 33. Bxc7
{[%clk 0:01:37.9]} 33... Qe6 {[%clk 0:01:33.8]} 34. Bf4 {[%clk 0:01:37.9]} 34...
c5 {[%clk 0:01:29.3]} 35. Rd2 {[%clk 0:01:38.1]} 35... c4 {[%clk 0:01:30]} 36.
bxc4 {[%clk 0:01:38.1]} 36... Qxc4 {[%clk 0:01:31.9]} 37. Rdf2 {[%clk 0:01:40]}
37... f6 {[%clk 0:01:32.3]} 38. h4 {[%clk 0:01:41.3]} 38... Qa4 {[%clk
0:01:31.5]} 39. Kh2 {[%clk 0:01:41.7]} 39... Qc4 {[%clk 0:01:32.2]} 40. Re1
{[%clk 0:01:42.3]} 40... Qa4 {[%clk 0:01:32.7]} 41. Re7 {[%clk 0:01:42.7]} 41...
Kg6 {[%clk 0:01:23.7]} 42. Rd2 {[%clk 0:01:43.1]} 42... Qb4 {[%clk 0:01:19.4]}
43. Red7 {[%clk 0:01:42.9]} 43... Qe4 {[%clk 0:01:19.4]} 44. R7d4 {[%clk
0:01:43.7]} 44... Qf3 {[%clk 0:01:19]} 45. a4 {[%clk 0:01:45.6]} 45... Kf5
{[%clk 0:01:19.3]} 46. a5 {[%clk 0:01:45.8]} 46... g5 {[%clk 0:01:19.6]} 47.
hxg5 {[%clk 0:01:47.3]} 47... fxg5 {[%clk 0:01:20.9]} 48. Rd5+ {[%clk
0:01:48.3]} 48... Kf6 {[%clk 0:01:13.9]} 49. Bxg5+ {[%clk 0:01:49.4]} 49... Kg6
{[%clk 0:01:15.3]} 50. Bh4 {[%clk 0:01:50.4]} 50... Qa3 {[%clk 0:01:14.9]} 51.
a6 {[%clk 0:01:50.2]} 51... Qe3 {[%clk 0:01:07.4]} 52. Rd6+ {[%clk 0:01:49.6]}
52... Kf5 {[%clk 0:01:07.7]} 53. Rd7 {[%clk 0:01:48.7]} 53... Qa3 {[%clk
0:01:01.8]} 54. a7 {[%clk 0:01:49.5]} 54... Kg4 {[%clk 0:01:02.8]} 55. Rg7+
{[%clk 0:01:46.7]} 55... Kf3 {[%clk 0:01:02.8]} 56. Rf7+ {[%clk 0:01:46.5]}
56... Ke3 {[%clk 0:01:02.7]} 57. Rg2 {[%clk 0:01:44.4]} 57... Qa1 {[%clk
0:00:54.9]} 58. Re7+ {[%clk 0:01:46.3]} 58... Kf3 {[%clk 0:00:53.1]} 59. Rge2
{[%clk 0:01:47.4]} 59... Kg4 {[%clk 0:00:50.6]} 60. R2e4+ {[%clk 0:01:44.1]}
60... Kf5 {[%clk 0:00:49]} 61. R4e5+ {[%clk 0:01:45.2]} 61... Kg4 {[%clk
0:00:46.1]} 62. Rg7+ {[%clk 0:01:46.1]} 62... Kf3 {[%clk 0:00:46.6]} 63. Rf7+
{[%clk 0:01:47]} 63... Kg4 {[%clk 0:00:43]} 64. Rf4# {[%clk 0:01:48]} 1-0

[Event "*** Titled Tuesday 3|2 Blitz"]
[Site "Chess.com"]
[Date "2016.06.07"]
[Round "2"]
[White "hermionegrangermagic"]
[Black "Fibrinogen"]
[Result "1-0"]
[WhiteElo "2292"]
[BlackElo "2310"]
[TimeControl "180+2"]
[EndTime "17:21:58 PDT"]
[Termination "hermionegrangermagic won by resignation"]

1. g4 {[%clk 0:03:01.9]} 1... d6 {[%clk 0:02:59.9]} 2. Bg2 {[%clk 0:02:56.1]}
2... c6 {[%clk 0:02:59.6]} 3. g5 {[%clk 0:02:51.7]} 3... e5 {[%clk 0:02:59.1]}
4. d4 {[%clk 0:02:49.8]} 4... h6 {[%clk 0:02:51.3]} 5. dxe5 {[%clk 0:02:30.5]}
5... hxg5 {[%clk 0:02:48]} 6. Nc3 {[%clk 0:02:20.4]} 6... d5 {[%clk 0:02:43.2]}
7. Nf3 {[%clk 0:02:02.4]} 7... g4 {[%clk 0:02:43.2]} 8. Nd4 {[%clk 0:01:51.7]}
8... Ne7 {[%clk 0:02:40.4]} 9. Bf4 {[%clk 0:01:42.7]} 9... Ng6 {[%clk
0:02:40.6]} 10. Bg3 {[%clk 0:01:43.1]} 10... Bc5 {[%clk 0:02:36.5]} 11. e3
{[%clk 0:01:37.5]} 11... Qe7 {[%clk 0:02:34.4]} 12. e6 {[%clk 0:01:37.1]} 12...
Bxe6 {[%clk 0:02:32]} 13. Nxe6 {[%clk 0:01:17.7]} 13... Qxe6 {[%clk 0:02:33.9]}
14. Ne2 {[%clk 0:00:34.6]} 14... Nd7 {[%clk 0:02:33.8]} 15. Nd4 {[%clk
0:00:35.4]} 15... Qf6 {[%clk 0:02:33.6]} 16. Qxg4 {[%clk 0:00:33.7]} 16... Nde5
{[%clk 0:02:34.3]} 17. Bxe5 {[%clk 0:00:29.5]} 17... Nxe5 {[%clk 0:02:36.2]} 18.
Qg3 {[%clk 0:00:24.1]} 18... Rh6 {[%clk 0:02:33.2]} 19. O-O-O {[%clk 0:00:19.4]}
19... Rg6 {[%clk 0:02:29.7]} 20. Qh3 {[%clk 0:00:20]} 20... Qxf2 {[%clk
0:02:29.2]} 21. Qh8+ {[%clk 0:00:20.5]} 21... Bf8 {[%clk 0:02:30.3]} 22. Bf1
{[%clk 0:00:11.2]} 22... Qxe3+ {[%clk 0:02:30.7]} 23. Kb1 {[%clk 0:00:12]} 23...
O-O-O {[%clk 0:02:31.2]} 24. Bh3+ {[%clk 0:00:12.7]} 24... Kb8 {[%clk
0:02:31.5]} 25. Rhe1 {[%clk 0:00:13.4]} 25... Qf4 {[%clk 0:02:31.8]} 26. Bf5
{[%clk 0:00:07.4]} 26... Rh6 {[%clk 0:02:31.1]} 27. Qg8 {[%clk 0:00:08.1]} 27...
Rf6 {[%clk 0:02:30]} 28. Qh7 {[%clk 0:00:07.9]} 28... g6 {[%clk 0:02:29.4]} 29.
Bh3 {[%clk 0:00:07.9]} 29... Bc5 {[%clk 0:02:26.5]} 30. Nb3 {[%clk 0:00:07.6]}
30... Bb6 {[%clk 0:02:23.6]} 31. Qg7 {[%clk 0:00:08.3]} 31... Nf3 {[%clk
0:02:17]} 32. Rf1 {[%clk 0:00:08]} 32... Qe5 {[%clk 0:01:49.2]} 33. Rxf3 {[%clk
0:00:06.9]} 33... Rdd6 {[%clk 0:01:46.1]} 34. Qh8+ {[%clk 0:00:07.4]} 34... Bd8
{[%clk 0:01:46.9]} 35. Rxf6 {[%clk 0:00:07.9]} 35... Qxf6 {[%clk 0:01:44.5]} 36.
Qxf6 {[%clk 0:00:08.4]} 36... Bxf6 {[%clk 0:01:46.1]} 37. Re1 {[%clk 0:00:09.4]}
37... Kc7 {[%clk 0:01:44.5]} 38. Nd2 {[%clk 0:00:10.2]} 38... Bg5 {[%clk
0:01:42.7]} 39. Nf3 {[%clk 0:00:10.8]} 39... Bd8 {[%clk 0:01:42.9]} 40. Ne5
{[%clk 0:00:11.2]} 40... Rf6 {[%clk 0:01:42.7]} 41. Nd3 {[%clk 0:00:10]} 41...
Rf3 {[%clk 0:01:42]} 42. Bg2 {[%clk 0:00:09.4]} 42... Rf5 {[%clk 0:01:42.3]} 43.
b3 {[%clk 0:00:06.6]} 43... Rh5 {[%clk 0:01:41.6]} 44. h3 {[%clk 0:00:07.1]}
44... Rg5 {[%clk 0:01:43.2]} 45. Re2 {[%clk 0:00:07.6]} 45... f5 {[%clk
0:01:43]} 46. Nf4 {[%clk 0:00:07.8]} 46... Bf6 {[%clk 0:01:44.1]} 47. Ne6+
{[%clk 0:00:08.5]} 47... Kd6 {[%clk 0:01:44.7]} 48. Nxg5 {[%clk 0:00:09.6]}
48... Bxg5 {[%clk 0:01:46.6]} 49. Bf3 {[%clk 0:00:10.8]} 49... Bf4 {[%clk
0:01:47.7]} 50. Rg2 {[%clk 0:00:11.2]} 50... g5 {[%clk 0:01:49]} 51. Re2 {[%clk
0:00:11.9]} 51... d4 {[%clk 0:01:49.1]} 52. Kb2 {[%clk 0:00:11.7]} 52... Be3
{[%clk 0:01:50.5]} 53. Rg2 {[%clk 0:00:11.2]} 53... Ke5 {[%clk 0:01:51.1]} 54.
Be2 {[%clk 0:00:10.2]} 54... Kf4 {[%clk 0:01:50.2]} 55. c3 {[%clk 0:00:10]}
55... dxc3+ {[%clk 0:01:50.9]} 56. Kxc3 {[%clk 0:00:10.9]} 56... b5 {[%clk
0:01:50]} 57. Kd3 {[%clk 0:00:11.5]} 57... c5 {[%clk 0:01:48.9]} 58. Bh5 {[%clk
0:00:12.3]} 58... a5 {[%clk 0:01:48.4]} 59. Re2 {[%clk 0:00:13]} 59... Bd4
{[%clk 0:01:49.8]} 60. Re6 {[%clk 0:00:13.5]} 60... g4 {[%clk 0:01:51.1]} 61.
hxg4 {[%clk 0:00:14.4]} 61... fxg4 {[%clk 0:01:53]} 62. Rg6 {[%clk 0:00:15.2]}
62... g3 {[%clk 0:01:54.4]} 63. Rg4+ {[%clk 0:00:16]} 63... Kf5 {[%clk
0:01:54.1]} 64. Rxg3 {[%clk 0:00:16.1]} 64... a4 {[%clk 0:01:56]} 65. bxa4
{[%clk 0:00:16.6]} 65... bxa4 {[%clk 0:01:57.9]} 66. Rf3+ {[%clk 0:00:17.7]}
66... Kg5 {[%clk 0:01:58.9]} 67. Be8 {[%clk 0:00:18.2]} 67... a3 {[%clk
0:02:00]} 68. Kc4 {[%clk 0:00:18.3]} 68... Bb2 {[%clk 0:02:01.1]} 69. Rd3 {[%clk
0:00:19]} 69... Kg4 {[%clk 0:02:03]} 70. Kxc5 {[%clk 0:00:19.5]} 70... Kf4
{[%clk 0:02:04.9]} 71. Kb4 {[%clk 0:00:20.2]} 71... Ke4 {[%clk 0:02:06.8]} 72.
Rb3 {[%clk 0:00:20.7]} 72... Kd4 {[%clk 0:02:07.6]} 73. Rxa3 {[%clk 0:00:21.6]}
73... Bxa3+ {[%clk 0:02:08.1]} 74. Kxa3 {[%clk 0:00:22.8]} 74... Kc5 {[%clk
0:02:10]} 75. Kb3 {[%clk 0:00:23.6]} 75... Kb6 {[%clk 0:02:11.9]} 1-0

[Event "*** Titled Tuesday 3|2 Blitz"]
[Site "Chess.com"]
[Date "2016.06.07"]
[Round "2"]
[White "WanderingPuppet"]
[Black "ChessNinja48"]
[Result "0-1"]
[WhiteElo "2273"]
[BlackElo "2335"]
[TimeControl "180+2"]
[EndTime "17:22:07 PDT"]
[Termination "ChessNinja48 won by resignation"]

1. e4 {[%clk 0:03:01.9]} 1... e6 {[%clk 0:02:59.7]} 2. d4 {[%clk 0:03:02.3]}
2... d5 {[%clk 0:03:00.2]} 3. e5 {[%clk 0:03:04]} 3... c5 {[%clk 0:03:01]} 4. c3
{[%clk 0:03:05.5]} 4... Nc6 {[%clk 0:03:02.6]} 5. Nf3 {[%clk 0:03:06.5]} 5...
Qb6 {[%clk 0:03:04.3]} 6. Be2 {[%clk 0:03:07.6]} 6... Bd7 {[%clk 0:03:04.8]} 7.
O-O {[%clk 0:03:08.4]} 7... Nh6 {[%clk 0:03:04.1]} 8. Bxh6 {[%clk 0:03:08]} 8...
gxh6 {[%clk 0:03:05.4]} 9. dxc5 {[%clk 0:03:09.7]} 9... Qxc5 {[%clk 0:03:05.4]}
10. b4 {[%clk 0:03:10.1]} 10... Qe7 {[%clk 0:02:47.6]} 11. b5 {[%clk 0:03:11.1]}
11... Na5 {[%clk 0:02:42.8]} 12. Nbd2 {[%clk 0:03:11.7]} 12... Rc8 {[%clk
0:02:39.8]} 13. Rc1 {[%clk 0:03:04.3]} 13... Bg7 {[%clk 0:02:31.4]} 14. c4
{[%clk 0:03:04.8]} 14... dxc4 {[%clk 0:02:08.4]} 15. Bxc4 {[%clk 0:02:38.3]}
15... O-O {[%clk 0:01:50.9]} 16. Bd3 {[%clk 0:02:29.7]} 16... Qb4 {[%clk
0:01:18.9]} 17. Ne4 {[%clk 0:02:02]} 17... Rxc1 {[%clk 0:01:14.1]} 18. Qxc1
{[%clk 0:01:59.8]} 18... Bxb5 {[%clk 0:01:12.1]} 19. Nf6+ {[%clk 0:01:34.1]}
19... Kh8 {[%clk 0:01:12.5]} 20. Bxb5 {[%clk 0:00:31.5]} 20... Qxb5 {[%clk
0:01:12.1]} 21. Qa3 {[%clk 0:00:33.4]} 21... Nc6 {[%clk 0:01:10]} 22. Qe3 {[%clk
0:00:07.1]} 22... Rd8 {[%clk 0:00:41.9]} 23. Nh5 {[%clk 0:00:06.3]} 23... Qd3
{[%clk 0:00:31.9]} 24. Qf4 {[%clk 0:00:05.1]} 24... Qg6 {[%clk 0:00:33.2]} 25.
Nxg7 {[%clk 0:00:04.1]} 25... Kxg7 {[%clk 0:00:35]} 26. h3 {[%clk 0:00:04.8]}
26... Rd5 {[%clk 0:00:36.3]} 27. Qa4 {[%clk 0:00:04.8]} 27... a6 {[%clk
0:00:35.4]} 28. Re1 {[%clk 0:00:04.5]} 28... Rd3 {[%clk 0:00:29.4]} 29. Kh2
{[%clk 0:00:03.7]} 29... Qf5 {[%clk 0:00:28.1]} 30. Qc4 {[%clk 0:00:03.2]} 30...
Rd5 {[%clk 0:00:27]} 31. Re2 {[%clk 0:00:03.8]} 31... Nxe5 {[%clk 0:00:26.3]}
32. Qc3 {[%clk 0:00:04.8]} 32... f6 {[%clk 0:00:27]} 33. Nh4 {[%clk 0:00:05]}
33... Qf4+ {[%clk 0:00:26.5]} 34. g3 {[%clk 0:00:06.4]} 34... Qc4 {[%clk
0:00:25.4]} 35. Qe3 {[%clk 0:00:06.2]} 35... Rd3 {[%clk 0:00:25]} 36. Qe4 {[%clk
0:00:05.4]} 36... Rd4 {[%clk 0:00:25.1]} 37. Qe3 {[%clk 0:00:06.2]} 37... Rd3
{[%clk 0:00:25.8]} 38. Qe4 {[%clk 0:00:07.3]} 38... Qxe4 {[%clk 0:00:27.1]} 39.
Rxe4 {[%clk 0:00:09.1]} 39... Rd2 {[%clk 0:00:29]} 40. Kg2 {[%clk 0:00:10]}
40... Rxa2 {[%clk 0:00:30.1]} 41. Rb4 {[%clk 0:00:11.1]} 41... b5 {[%clk
0:00:31.5]} 42. Rd4 {[%clk 0:00:12.4]} 42... a5 {[%clk 0:00:31.2]} 43. Kg1
{[%clk 0:00:13.1]} 43... a4 {[%clk 0:00:32.4]} 44. f4 {[%clk 0:00:14]} 44... Nf7
{[%clk 0:00:31.7]} 45. Rd7 {[%clk 0:00:14.8]} 45... b4 {[%clk 0:00:32]} 46. f5
{[%clk 0:00:14.7]} 46... e5 {[%clk 0:00:31.2]} 47. Rb7 {[%clk 0:00:13.7]} 47...
b3 {[%clk 0:00:32.4]} 48. Ng2 {[%clk 0:00:14.7]} 48... b2 {[%clk 0:00:33.8]} 49.
Kh2 {[%clk 0:00:15.8]} 49... a3 {[%clk 0:00:35]} 50. g4 {[%clk 0:00:16.1]} 50...
Ra1 {[%clk 0:00:34.5]} 51. g5 {[%clk 0:00:18]} 51... hxg5 {[%clk 0:00:35.4]} 0-1

[Event "*** Titled Tuesday 3|2 Blitz"]
[Site "Chess.com"]
[Date "2016.06.07"]
[Round "2"]
[White "twitchTriniCupid"]
[Black "Fawolizzo"]
[Result "1-0"]
[WhiteElo "2125"]
[BlackElo "1999"]
[TimeControl "180+2"]
[EndTime "17:22:18 PDT"]
[Termination "twitchTriniCupid won on time"]

1. d4 {[%clk 0:03:01.2]} 1... Nf6 {[%clk 0:02:57.4]} 2. c4 {[%clk 0:03:02.4]}
2... e6 {[%clk 0:02:58.2]} 3. Nc3 {[%clk 0:03:03.8]} 3... Bb4 {[%clk 0:02:58.8]}
4. Qb3 {[%clk 0:03:04.9]} 4... Bxc3+ {[%clk 0:02:58.8]} 5. Qxc3 {[%clk
0:03:05.9]} 5... b6 {[%clk 0:03:00]} 6. f3 {[%clk 0:03:06.3]} 6... d5 {[%clk
0:03:00]} 7. Bg5 {[%clk 0:03:06.2]} 7... Nbd7 {[%clk 0:02:59.4]} 8. e3 {[%clk
0:03:04.4]} 8... O-O {[%clk 0:02:59.4]} 9. Rc1 {[%clk 0:03:03.7]} 9... c5 {[%clk
0:02:59.9]} 10. cxd5 {[%clk 0:03:04.2]} 10... exd5 {[%clk 0:02:59.5]} 11. Bd3
{[%clk 0:03:03.5]} 11... Re8 {[%clk 0:02:56.4]} 12. Kf2 {[%clk 0:03:01.8]} 12...
Ng4+ {[%clk 0:02:51.6]} 13. fxg4 {[%clk 0:03:00.9]} 13... Qxg5 {[%clk
0:02:52.1]} 14. Re1 {[%clk 0:02:59]} 14... Qxg4 {[%clk 0:02:45.3]} 15. Nf3
{[%clk 0:02:59.9]} 15... Nf6 {[%clk 0:02:42.5]} 16. dxc5 {[%clk 0:02:52.5]}
16... bxc5 {[%clk 0:02:38]} 17. Qxc5 {[%clk 0:02:35.9]} 17... Bf5 {[%clk
0:02:34.4]} 18. Qa3 {[%clk 0:01:55.2]} 18... Bxd3 {[%clk 0:02:31.7]} 19. Qxd3
{[%clk 0:01:55.3]} 19... Qa4 {[%clk 0:02:25.1]} 20. b3 {[%clk 0:01:53.7]} 20...
Qxa2+ {[%clk 0:02:16.3]} 21. Re2 {[%clk 0:01:54]} 21... Qa5 {[%clk 0:02:10.2]}
22. Rc1 {[%clk 0:01:50.3]} 22... Rad8 {[%clk 0:02:03.6]} 23. Nd4 {[%clk
0:01:50.6]} 23... Ne4+ {[%clk 0:01:58]} 24. Kg1 {[%clk 0:01:50.9]} 24... Rc8
{[%clk 0:01:51.6]} 25. Rf1 {[%clk 0:01:35.4]} 25... Rc3 {[%clk 0:01:41.5]} 26.
Qb1 {[%clk 0:01:10.2]} 26... h6 {[%clk 0:01:32.9]} 27. b4 {[%clk 0:01:01.3]}
27... Qb6 {[%clk 0:01:25.5]} 28. Qb2 {[%clk 0:00:53.5]} 28... Rec8 {[%clk
0:01:18.1]} 29. b5 {[%clk 0:00:42.1]} 29... R8c4 {[%clk 0:00:53.2]} 30. Qa2
{[%clk 0:00:33.9]} 30... Rxd4 {[%clk 0:00:33.3]} 31. exd4 {[%clk 0:00:33.2]}
31... Qxd4+ {[%clk 0:00:33.7]} 32. Kh1 {[%clk 0:00:34.4]} 32... Qd3 {[%clk
0:00:19.1]} 33. g3 {[%clk 0:00:30.7]} 33... Nd2 {[%clk 0:00:11.6]} 34. Rfe1
{[%clk 0:00:26.1]} 34... Qf3+ {[%clk 0:00:10.6]} 35. Rg2 {[%clk 0:00:26.4]}
35... Ne4 {[%clk 0:00:07.1]} 36. Qe2 {[%clk 0:00:26.5]} 36... Qf6 {[%clk
0:00:03.2]} 37. Rf1 {[%clk 0:00:25.4]} 37... Qb6 {[%clk 0:00:03.1]} 38. Qd1
{[%clk 0:00:17.8]} 38... Rc5 {[%clk 0:00:03.1]} 39. Qf3 {[%clk 0:00:17.3]} 39...
f6 {[%clk 0:00:04]} 40. Qf5 {[%clk 0:00:17.3]} 40... Rxb5 {[%clk 0:00:04.8]} 41.
Qc8+ {[%clk 0:00:17.1]} 41... Kh7 {[%clk 0:00:05.1]} 42. Qc2 {[%clk 0:00:18.1]}
42... Rb3 {[%clk 0:00:04.7]} 43. Re2 {[%clk 0:00:18.2]} 43... Qb7 {[%clk
0:00:03.6]} 44. Rfe1 {[%clk 0:00:18.5]} 44... Rc3 {[%clk 0:00:02.4]} 45. Qb1
{[%clk 0:00:17.9]} 45... Rb3 {[%clk 0:00:03.2]} 46. Qc2 {[%clk 0:00:17.3]} 1-0